Cogmind - Beta 14 @@@ ROGUE MODE // 2024.10.07 @ 21:09:41 Player: Blanco! Result: Destroyed by G-47 Trooper with Particle Gun Performance ------------- Evolutions (2) 1000 Regions Visited (4) 800 Robots Destroyed (23) 115 Value Destroyed (559) 559 Prototype IDs (0) 0 Alien Tech Used (0) 0 Bonus (0) 0 TOTAL SCORE: 2474 Bonus ------- None Cogmind --------- Core Integrity 0/550 Matter 342/500 Energy 58/100 System Corruption 1% Temperature Cool (9) Movement Hovering (420) Ox6 Location -8/Materials Parts ------- > --- POWER (2) -------- (None) > --- PROPULSION (2) --- Airjet > --- UTILITY (4) ------ High-capacity Storage Unit High-capacity Matter Pod Recoil Stabilizer > --- WEAPON (3) ------- EM Shotgun Light Assault Rifle High-powered Shotgun > --- INVENTORY (20) --- Armored Treads Aluminum Leg Small Storage Unit Targeting Computer Spread Laser Peak State ------------ > --- POWER ------------ Light Ion Engine Light Nuclear Core > --- PROPULSION ------- Aluminum Leg Improved Aluminum Leg > --- UTILITY ---------- Improved Heat Sink High-capacity Storage Unit High-capacity Matter Pod Weight Redist. System > --- WEAPON ----------- EM Shotgun High-powered Shotgun Gauss Rifle > --- INVENTORY -------- Light Treads Light Treads Armored Treads Airjet Small Storage Unit Targeting Computer EM Shotgun Spread Laser Light Assault Rifle Light Cannon Light Cannon Light Cannon Light Cannon [Rating: 24] Favorites ----------- Power Light Ion Engine Engine Light Ion Engine Power Core Light Nuclear Core Propulsion Aluminum Leg Treads Light Treads Leg Aluminum Leg Wheel Compact Wheel Hover Unit Airjet Utility High-capacity Matter Pod Device Terrain Scanner Storage High-capacity Matter Pod Weapon Assault Rifle Energy Gun Spread Laser Ballistic Gun Assault Rifle Ballistic Cannon Light Cannon Special Weapon Mining Laser Build | -11 -10 -10 -9 -8 ------- Run | Yrd Mat Min Mat Mat Slots Evolved 4 | . . . 2 2 Power 1 | . . . 1 . Propulsion . | . . . . . Utility 2 | . . . 1 1 Weapon 1 | . . . . 1 Parts Attached 45 | 6 1 8 6 24 Power 7 | 1 . 1 1 4 Engine 5 | 1 . 1 1 2 Core 2 | . . . . 2 Reactor . | . . . . . Propulsion 9 | 2 . 2 1 4 Treads 2 | . . . . 2 Leg 4 | . . 2 1 1 Wheel 2 | 2 . . . . Hover 1 | . . . . 1 Flight . | . . . . . Utility 9 | 1 1 2 2 3 Device 4 | . . . 1 3 Storage 5 | 1 1 2 1 . Processor . | . . . . . Hackware . | . . . . . Protection . | . . . . . Artifact . | . . . . . Weapon 20 | 2 . 3 2 13 Energy Gun 5 | . . . 2 3 Energy Cannon . | . . . . . Ballistic Gun 10 | 2 . 2 . 6 Ballistic Cannon 4 | . . . . 4 Launcher . | . . . . . Special Weapon 1 | . . 1 . . Impact Weapon . | . . . . . Slashing Weapon . | . . . . . Piercing Weapon . | . . . . . Special Melee Weapon . | . . . . . Unidentified Prototypes . | . . . . . Corrupted Parts 1 | . . . . 1 System Corruption 1 | . . . . 1 Parts Lost 24 | . . 3 . 21 Power 6 | . . 1 . 5 Propulsion 5 | . . 1 . 4 Utility 3 | . . . . 3 Weapon 10 | . . 1 . 9 Highest Loss Streak 8 | . . 3 . 8 To Critical Strikes . | . . . . . Average Slot Usage (%) 94 | . 97 97 100 86 Engine 15 | . 14 13 22 9 Core 1 | . . . . 2 Leg 13 | . . 2 22 11 Wheel 6 | . 28 23 . . Device 9 | . . . 11 16 Storage 22 | . 25 28 22 18 Energy Gun 9 | . . . 15 9 Ballistic Gun 12 | . 28 23 6 9 Ballistic Cannon 1 | . . . . 5 Peak Build Rating 24 | 6 7 8 13 24 Average Rating 12 | 4 6 7 11 17 On Entrance 6 | . 6 7 7 13 Naked Turns . | . . . . . Heaviest Build 63 | 13 15 22 57 63 Greatest Support 46 | 26 26 26 23 46 Greatest Overweight (x) 6 | . . 1 2 6 Average Overweight (x) . | . . . 1 2 Largest Inventory Capacity 20 | 8 8 10 20 20 Average Capacity 16 | 7 8 9 19 20 Most Carried 17 | 6 7 10 14 17 Average Carried 10 | 4 6 8 9 12 Final Capacity 20 | 8 8 10 20 20 Final Carried 14 | 6 6 9 14 5 Class Distribution -------------------- 73% | Mutant 13% | Skirmisher 12% | Gunner Dominant Class ---------------- Mutant | -10/Materials Mutant | -10/Mines Mutant | -9/Materials Skirmisher | -8/Materials Resources | -11 -10 -10 -9 -8 ----------- Run | Yrd Mat Min Mat Mat Matter Collected 1000 | 221 . 238 58 483 Remotely . | . . . . . Salvage Created 503 | . . 75 . 428 Parts 39 | . . 13 . 26 Haulers Intercepted . | . . . . . Recyclers Shooed 2 | . . . 1 1 Parts Field Recycled . | . . . . . Retrieved Matter . | . . . . . Parts Self-Destructed . | . . . . . Prevented . | . . . . . Kills | -11 -10 -10 -9 -8 ------- Run | Yrd Mat Min Mat Mat Combat Hostiles Destroyed 20 | . . 6 . 14 Guns 12 | . . 5 . 7 Cannons 6 | . . 1 . 5 AOE 2 | . . . . 2 Classes Destroyed 5 | . . 1 . 4 Worker 2 | . . . . 2 Recycler 1 | . . . . 1 Swarmer 11 | . . 6 . 5 Grunt 8 | . . . . 8 Hunter 1 | . . . . 1 Best Kill Streak 4 | . . 4 . 4 Combat Bots Only 4 | . . 4 . 4 Max Kills in Single Turn 2 | . . 2 . 1 Gunslinging 1 | . . 1 . . Exploded 1 | . . . . 1 Melee . | . . . . . Uniques/NPCs Destroyed . | . . . . . Combat | -11 -10 -10 -9 -8 -------- Run | Yrd Mat Min Mat Mat Hostile Shots Fired 353 | . . 78 . 275 Missed 94 | . . 11 . 83 Damage Taken 3071 | . . 639 33 2399 Core 748 | . . 173 16 559 Absorbed by Shields . | . . . . . Core Remaining (%) 75 | 100 . 30 96 . Volleys Fired 79 | . 2 13 6 58 Largest 3 | . 2 2 2 3 Hottest 155 | . 40 120 110 155 Shots Fired 185 | . 4 25 12 144 Gun 119 | . 4 20 12 83 Cannon 61 | . . . . 61 Launcher . | . . . . . Special 5 | . . 5 . . Kinetic 139 | . 4 20 4 111 Thermal 29 | . . 5 4 20 Explosive . | . . . . . Electromagnetic 17 | . . . 4 13 Robot Hit Streak 9 | . 1 5 3 9 Robot Miss Streak 12 | . 3 3 6 12 Penetration Max . | . . . . . Secondary Targets 3 | . . 3 . . Max Gunslinging Chain 1 | . . 1 . . Shots Hit Robots 108 | . 1 13 6 88 Core Hits 64 | . . 6 6 52 Critical Kills 2 | . . 1 . 1 Critical Parts Destroyed . | . . . . . Critical Strikes 3 | . . 1 . 2 Destroy 2 | . . 1 . 1 Blast 1 | . . . . 1 Melee Attacks . | . . . . . Impact . | . . . . . Slashing . | . . . . . Piercing . | . . . . . Sneak Attacks . | . . . . . Combat Hostiles . | . . . . . Follow-up Attacks . | . . . . . Damage Inflicted 1940 | . 9 183 81 1667 Guns 1101 | . 9 135 77 880 Cannons 664 | . . . . 664 Explosions 114 | . . . . 114 Melee . | . . . . . Ramming 13 | . . . 4 9 Kinetic 1353 | . 9 135 . 1209 Thermal 439 | . . 48 45 346 Explosive . | . . . . . Electromagnetic 135 | . . . 32 103 Impact . | . . . . . Slashing . | . . . . . Piercing . | . . . . . Highest Corruption 2 | . . . 2 1 Average Corruption 1 | . . . 1 1 Corruption Purged . | . . . . . Corruption Blocked . | . . . . . Effects 10 | . . . 6 4 Message Errors 2 | . . . 1 1 Matter Fused 4 | . . . 2 2 Heat Flow Errors 1 | . . . 1 . Energy Discharges 1 | . . . 1 . Parts Rejected 1 | . . . . 1 Data Loss (minor) 1 | . . . 1 . Overload Shots . | . . . . . Overflow Damage 8 | . . . . 8 Projectiles 8 | . . . . 8 Explosions . | . . . . . Melee . | . . . . . Knockbacks 11 | . . . . 11 Impact . | . . . . . Kinetic 10 | . . . . 10 Secondary 1 | . . . . 1 Self-Inflicted Damage 56 | . . 56 . . Shots 1 | . . 1 . . Rammed . | . . . . . Targets Rammed 3 | . . . 2 1 Kicked 3 | . . . 2 1 Crushed . | . . . . . Highest Temperature 424 | . . 132 174 424 Average Temperature 90 | . . 53 47 110 Received Heat Transfer 1377 | . . 18 . 1359 Effects 2 | . . . . 2 Shutdowns 1 | . . . . 1 Energy Bleed 1 | . . . . 1 Siege Activations . | . . . . . Robots Corrupted . | . . . . . Combat Hostiles . | . . . . . Parts Fried . | . . . . . Impact Corruptions . | . . . . . Robots Melted . | . . . . . Combat Hostiles . | . . . . . Parts Melted 1 | . . . . 1 Heat Transferred 679 | . . 100 55 524 Parts Sabotaged . | . . . . . Parts Stolen . | . . . . . Parts Stripped . | . . . . . Power Chain Reactions 2 | . . . . 2 Alert | -11 -10 -10 -9 -8 ------- Run | Yrd Mat Min Mat Mat Peak Influence 169 | . 15 160 35 169 Initial 5 | . . 5 5 . Average 32 | . 5 20 20 59 Maximum Alert Level . | . . . . . Low Security (%) 100 | 100 100 100 100 100 Level 1 . | . . . . . Level 2 . | . . . . . Level 3 . | . . . . . Level 4 . | . . . . . Level 5 . | . . . . . High Security . | . . . . . Max Security . | . . . . . Squads Dispatched 6 | . . . . 6 Investigation . | . . . . . Extermination . | . . . . . Reinforcement 3 | . . . . 3 Assault . | . . . . . Garrison 3 | . . . . 3 Intercept . | . . . . . Searches Triggered . | . . . . . Construction Impeded . | . . . . . Haulers Reinforced . | . . . . . Active Scanning Responses . | . . . . . Cargo Convoy Interrupts . | . . . . . Stealth | -11 -10 -10 -9 -8 --------- Run | Yrd Mat Min Mat Mat Distress Signals . | . . . . . Communications Jammed . | . . . . . Distress Signals . | . . . . . Times Spotted 39 | . 2 8 6 23 Peak Tracking Total 6 | . 2 6 2 4 Tactical Retreats . | . . . . . Traps | -11 -10 -10 -9 -8 ------- Run | Yrd Mat Min Mat Mat Traps Triggered 2 | . . . 2 . Indirectly . | . . . . . Trap Hack Attempts . | . . . . . Triggered . | . . . . . Disarmed . | . . . . . Reprogrammed . | . . . . . Reused . | . . . . . Traps Extracted . | . . . . . Installed . | . . . . . Triggered . | . . . . . Machines | -11 -10 -10 -9 -8 ---------- Run | Yrd Mat Min Mat Mat Machines Disabled 1 | . . 1 . . Max in Single Turn 1 | . . 1 . . Machines Repaired . | . . . . . Machines Dismantled . | . . . . . Machines Sabotaged . | . . . . . Overloaded Fab Kills . | . . . . . Hacking | -11 -10 -10 -9 -8 --------- Run | Yrd Mat Min Mat Mat Machines Accessed 2 | . . . . 2 Terminals 1 | . . . . 1 Fabricators . | . . . . . Repair Stations . | . . . . . Recycling Units 1 | . . . . 1 Scanalyzers . | . . . . . Garrison Access . | . . . . . Total Hacks 3 | . . . . 3 Successful 2 | . . . . 2 Failed 1 | . . . . 1 Catastrophic . | . . . . . Database Lockouts . | . . . . . Manual . | . . . . . Terminals 2 | . . . . 2 Fabricators . | . . . . . Repair Stations . | . . . . . Recycling Units 1 | . . . . 1 Scanalyzers . | . . . . . Garrison Access . | . . . . . Terminal Hacks 2 | . . . . 2 Record 2 | . . . . 2 Fabricator Hacks . | . . . . . Repair Station Hacks . | . . . . . Recycling Unit Hacks . | . . . . . Scanalyzer . | . . . . . Garrison Access Hacks . | . . . . . Unauthorized Hacks . | . . . . . Terminals . | . . . . . Fabricators . | . . . . . Repair Stations . | . . . . . Recycling Units . | . . . . . Scanalyzers . | . . . . . Garrison Access . | . . . . . Data Cores Recovered . | . . . . . Used . | . . . . . Hacking Detections 1 | . . . . 1 Full Trace Events . | . . . . . Feedback Events . | . . . . . Feedback Blocked . | . . . . . Robot Schematics Acquired . | . . . . . Robots Built . | . . . . . Authchips . | . . . . . Time . | . . . . . Total Robot Build Rating . | . . . . . Part Schematics Acquired . | . . . . . Parts Built . | . . . . . Authchips . | . . . . . Time . | . . . . . Total Part Build Rating . | . . . . . Parts Repaired . | . . . . . Time . | . . . . . Parts Recycled . | . . . . . Recycled Matter . | . . . . . Retrieved Matter . | . . . . . Retrieved Components . | . . . . . Parts Scanalyzed . | . . . . . Part Schematics Acquired . | . . . . . Parts Damaged . | . . . . . Bothacking | -11 -10 -10 -9 -8 ------------ Run | Yrd Mat Min Mat Mat Used RIF Installer . | . . . . . Robots Hacked . | . . . . . Non-combat . | . . . . . Combat . | . . . . . Robot Hacks Applied . | . . . . . Relay Couplers Released . | . . . . . Fabnet Peak Effective % . | . . . . . Robots Rewired . | . . . . . Allies Hacked . | . . . . . Hacks Repelled . | . . . . . Allies | -11 -10 -10 -9 -8 -------- Run | Yrd Mat Min Mat Mat Total Allies 1 | . . 1 . . Largest Group 1 | . . 1 . . Highest-Rated Group 31 | . . 31 . . Highest-Rated Ally 31 | . . 31 . . Total Orders . | . . . . . Ally Attacks . | . . . . . Total Damage . | . . . . . Kills . | . . . . . Allies Corrupted . | . . . . . Allies Melted . | . . . . . Intel | -11 -10 -10 -9 -8 ------- Run | Yrd Mat Min Mat Mat Robot Analysis Total . | . . . . . Derelict Logs Recovered 1 | . . 1 . . Drone Launches . | . . . . . Drone Recoveries . | . . . . . Exploration | -11 -10 -10 -9 -8 ------------- Run | Yrd Mat Min Mat Mat Turns Passed 2263 | 72 109 479 810 793 Spaces Moved 1105 | 65 113 423 304 200 Core 8 | 8 . . . . Treads 13 | . . . . 13 Legs 484 | . . 26 304 154 Wheels 567 | 57 113 397 . . Hover 33 | . . . . 33 Flight . | . . . . . Fastest Speed 50 | 50 90 90 190 190 Average Speed 167 | 85 90 98 251 253 Slowest Speed 420 | 90 90 190 260 420 Overloaded Moves . | . . . . . Propulsion Burnouts . | . . . . . Robots Hopped . | . . . . . Cave-ins Triggered . | . . . . . Exploration Rate (%) 26 | 5 17 64 24 23 Regions Visited 4 Branch Regions 1 Pre-discovered Areas . | . . . . . Known Exits Taken . | . . . . . Unknown Exits Taken 4 | 1 1 1 1 . Scrap Searched 1 | . . 1 . . Spaces Dug . | . . . . . Terrain Destroyed 23 | . . 18 . 5 Melee . | . . . . . Projectile 3 | . . 2 . 1 AOE 20 | . . 16 . 4 Terrain Rammed . | . . . . . Walls Destroyed . | . . . . . Machines Disabled . | . . . . . Actions | -11 -10 -10 -9 -8 --------- Run | Yrd Mat Min Mat Mat Total 1346 | 81 116 449 336 364 Wait 70 | . . . . 70 Move 1101 | 64 112 422 303 200 Hop . | . . . . . Pick Up 42 | 11 1 6 13 11 Fast Attach 1 | 1 . . . . Attach 31 | 5 1 3 2 20 Detach . | . . . . . Swap 13 | . . 5 4 4 Drop 6 | . . . 6 . Fire 79 | . 2 13 6 58 Melee . | . . . . . Ram . | . . . . . Kick 3 | . . . 2 1 Crush . | . . . . . Escape Stasis . | . . . . . Rewire . | . . . . . Trap . | . . . . . Miscellaneous . | . . . . . Route ------- -11/Scrapyard -10/Materials -10/Mines -9/Materials -8/Materials History --------- Turn | Location | Event 18 | -11/Scrapyard | Discovered new exit (range 14) 73 | -11/Scrapyard | Entered Materials 82 | -10/Materials | Discovered new exit (range 13) 182 | -10/Materials | Entered Mines 185 | -10/Mines | Received a Mining Laser from a helpful Derelict 310 | -10/Mines | Build established: Mutant 495 | -10/Mines | Learned Materials terminal intel 544 | -10/Mines | Core integrity fell below 50% 577 | -10/Mines | Lost 3 parts (1p1n1w) 633 | -10/Mines | Discovered new exit (range 9) 661 | -10/Mines | Entered Materials 661 | -9/Materials | Evolved 2 slots: Power x1, Utility x1 662 | -9/Materials | Loaded intel: 12 terminal locations 1276 | -9/Materials | Discovered new exit (range 7) 1471 | -9/Materials | Entered another Materials area 1471 | -8/Materials | Evolved 2 slots: Utility x1, Weapon x1 1778 | -8/Materials | Build established: Skirmisher 1787 | -8/Materials | Garrison activated, responded to threat 1890 | -8/Materials | Lost 8 parts (2p1n1u4w) 2020 | -8/Materials | Lost 3 parts (2p1n) 2089 | -8/Materials | Core integrity fell below 50% 2141 | -8/Materials | Lost 6 parts (2n1u3w) 2141 | -8/Materials | Core integrity fell below 20% 2264 | -8/Materials | Destroyed by G-47 Trooper with Particle Gun Last Messages --------------- 02199_ K-01 Serf collects debris. 02202_ G-47 Trooper knocked back. 02203_ K-01 Serf collects debris. 02205_ G-47 Trooper knocked back. 02208_ K-01 Serf collects debris. 02214_ K-01 Serf cleans the Garrison Access. 02229_ G-47 Trooper destroyed. 02233_ K-01 Serf collects debris. 02236_ K-01 Serf cleans the Garrison Access. 02236_ K-01 Serf collects debris. 02239_ K-01 Serf cleans the Garrison Access. 02240_ K-01 Serf collects debris. 02242_ K-01 Serf cleans the Garrison Access. 02243_ K-01 Serf cleans the Electrolysis Chamber. 02249_ K-01 Serf cleans the Garrison Access. 02250_ Lgt. Ion Engine destroyed. 02252_ K-01 Serf cleans the Garrison Access. 02258_ Critical hit (Burn: +37). 02259_ Lgt. Cannon destroyed. 02261_ Weight Redist. System destroyed. Map ----- +----------------------------------------------------+ | ????????????????????????????????????????????????# | | ?????????????????????????????????????? ????? ?# | | ?????????????????????????????????????/ ???????# | | ?????????????????????????????????????# ?????"?# | | ?????????????????????????????????????# #??????# | | ?????????????????????????????????????# #????#### | | ????????????????????????????????????## ## ??? ?? | | ????????????????????????????????????? ## ???? | | ?????????????????????????????????????# ## """?"? | | ?????????????????????????????????????# ## """"" | | ????????????????????????? ???????????# ## """"? | | ????????????????????????" ???????????# ## | | ????????????????????????" ???????????# #######+# | | ???????????????????????? ???????????# % | | ????????????????#########k##?????????# % % | | ????????????????# m #??######## % | | ????????????????# #??# ### # | | ????????????????# T #### #?#% % # | | ????????????????# # #?# # | | ????????????????# # """ #?# |! # | | ????????????????# = # """ #?# % !! # | | ??????????? ### # """ #?# % ! # | | ??????????? # #?# % # | | ?????????? ###+##### # | | ?????????? k # | | ?????????? @ % % # | | ?????????? t a k % "T" # | | ?????????? ! """ """ k"" """ # | | ??????????? """"""""" g G" ########## | | ?????????????????? """"" " gg"" #????????? | | ?????????????????? k #????????? | | ???????????????????? #????????? | | ????????????????????###### ^ a ?#????"? | | ?????????????????????????# r ? ????? | | ?????????????????????????# ^ #?????? | | ?????????????????????????#############T# ????"?? | | ?????????????????????????????????????### #?????? | | ???????????????????????????????????????? ??????? | | ???????????????????????????????????????? ???????? | | ???????????????????????????????????????? ????????? | | ?????????????????????????????????????????????????? | | ?????????????????????????????????????????????????? | | ?????????????????????????????????????????????????? | | ?????????????????????????????????????????????????? | | ?????????????????????????????????????????????????? | | ?????????????????????????????????????????????????? | | ?????????????????????????????????????????????????? | | ?????????????????????????????????????????????????? | | ?????????????????????????????????????????????????? | | ?????????????????????????????????????????????????? | +----------------------------------------------------+ Best States ------------- Heat Dissipation 45 Energy Generation 19 Energy Capacity 250 Matter Stores 500 Matter Capacity 500 Sight Range 16 Terrain Scan Range 14 Terrain Scan Density 10 Additional Mass Support 6 Evasion (%) 50 Recoil Reduction 4 Item Schematics ----------------- None Robot Schematics ------------------ None Fabricated ------------ Nothing Alien Tech Used ----------------- None Achievements -------------- None Challenges ------------ None Game ------ Seed MolecularInsulationLoader Manual? 0 Play Time 00:29:41 Cumulative 8.9 hours Start 2024.10.07 @ 20:38:55 End 2024.10.07 @ 21:09:41 Sessions 1 Manual Loads 0 Difficulty Rogue Special Mode None Game No. 10 Rogue 10 Adventurer 0 Explorer 0 Win Type - Total 0 Types 0/0/0/0/0/0/0/0/0 Lore% 3 Gallery% 12 Achievement% 10 Wizard Run 0 Options --------- Layout 0 ASCII 0 Keyboard 0 Movement Arrows Keybinds 0 Fullscreen 2 Font 18/SmallcapsGlow Map View 38x25 Zoom Use 99% Tactical HUD 1 Map Filters NONE Filters NONE Steam 1 RUN: b26a652b-90b3-470a-b103-0357c477e9d9